Cogmind - Beta 13 @@@ ROGUE MODE // 2024.03.17 @ 01:55:09 Player: Infomantis Result: Destroyed by FO-NRP(R) with Subdweller Machine Gun Performance ------------- Evolutions (0) 0 Regions Visited (2) 400 Robots Destroyed (28) 140 Value Destroyed (697) 697 Prototype IDs (0) 0 Alien Tech Used (0) 0 Bonus (0) 0 TOTAL SCORE: 1237 Bonus ------- None Cogmind --------- Core Integrity 0/250 Matter 300/300 Energy 105/125 System Corruption 0% Temperature Cool (36) Movement Treading (160) Location -10/Subcaves Parts ------- > --- POWER (1) -------- Light Ion Engine > --- PROPULSION (2) --- Light Treads Spiked Treads > --- UTILITY (2) ------ Small Storage Unit Makeshift Light Armor Plating > --- WEAPON (2) ------- Subdweller Beam Cannon Subdweller Beam Cannon > --- INVENTORY (8) ---- Light Ion Engine Compact Wheel Flightbrick Seismic Detector Light Armor Plating Peak State ------------ > --- POWER ------------ Light Ion Engine > --- PROPULSION ------- Light Treads Spiked Treads > --- UTILITY ---------- Small Storage Unit Makeshift Light Armor Plating > --- WEAPON ----------- Subdweller Beam Cannon Subdweller Beam Cannon > --- INVENTORY -------- Light Ion Engine Compact Wheel Flightbrick Seismic Detector Light Armor Plating [Rating: 17] Favorites ----------- Power Light Ion Engine Engine Light Ion Engine Power Core Light Nuclear Core Propulsion Light Treads Treads Light Treads Utility Small Storage Unit Device Sensor Array Storage Small Storage Unit Protection Makeshift Light Armor Plating Weapon Subdweller Beam Cannon Energy Gun Subdweller Laser Energy Cannon Subdweller Beam Cannon Ballistic Gun Assault Rifle Launcher Grenade Launcher Build | -11 -10 -10 ------- Run | Yrd Mat Sub Slots Evolved . | . . . Power . | . . . Propulsion . | . . . Utility . | . . . Weapon . | . . . Parts Attached 28 | 7 3 18 Power 3 | 1 1 1 Engine 2 | 1 . 1 Core 1 | . 1 . Reactor . | . . . Propulsion 7 | 2 . 5 Treads 7 | 2 . 5 Leg . | . . . Wheel . | . . . Hover . | . . . Flight . | . . . Utility 7 | 2 1 4 Device 4 | 1 1 2 Storage 1 | 1 . . Processor . | . . . Hackware . | . . . Protection 2 | . . 2 Artifact . | . . . Weapon 11 | 2 1 8 Energy Gun 4 | . 1 3 Energy Cannon 4 | . . 4 Ballistic Gun 2 | 2 . . Ballistic Cannon . | . . . Launcher 1 | . . 1 Special Weapon . | . . . Impact Weapon . | . . . Slashing Weapon . | . . . Piercing Weapon . | . . . Special Melee Weapon . | . . . Unidentified Prototypes . | . . . Parts Lost 5 | . 1 4 Power . | . . . Propulsion . | . . . Utility 2 | . 1 1 Weapon 3 | . . 3 Highest Loss Streak 2 | . 1 2 To Critical Strikes . | . . . Average Slot Usage (%) 98 | . 91 99 Engine 8 | . 4 8 Core 6 | . 9 5 Treads 28 | . 28 28 Device 11 | . 6 12 Storage 14 | . 14 14 Protection 1 | . . 1 Energy Gun 8 | . 9 8 Energy Cannon 15 | . . 18 Ballistic Gun 4 | . 18 1 Naked Turns . | . . . Heaviest Build 28 | 12 16 28 Greatest Support 40 | 40 40 40 Greatest Overweight (x) . | . . . Average Overweight (x) . | . . . Largest Inventory Capacity 8 | 8 8 8 Average Capacity 7 | 7 8 8 Most Carried 8 | 7 8 8 Average Carried 7 | 3 7 7 Final Capacity 8 | 8 8 8 Final Carried 8 | 7 8 8 Class Distribution -------------------- 56% | Scavenger-Mutant 43% | Mutant Dominant Class ---------------- Mutant | -10/Materials Scavenger-Mutant | -10/Subcaves Resources | -11 -10 -10 ----------- Run | Yrd Mat Sub Matter Collected 693 | 314 117 262 Remotely . | . . . Salvage Created 994 | 139 187 668 Parts 69 | 9 10 50 Haulers Intercepted 1 | . 1 . Recyclers Shooed 2 | 2 . . Parts Field Recycled . | . . . Retrieved Matter . | . . . Parts Self-Destructed 14 | . . 14 Prevented . | . . . Kills | -11 -10 -10 ------- Run | Yrd Mat Sub Combat Hostiles Destroyed 21 | . 2 19 Guns 9 | . 2 7 Cannons 10 | . . 10 AOE 1 | . . 1 Classes Destroyed 8 | 2 3 3 Tunneler 3 | 3 . . Hauler 1 | . 1 . Recycler 1 | 1 . . Watcher 2 | . 2 . Swarmer 7 | . . 7 Grunt 2 | . 2 . Sentry 1 | . . 1 Subdweller 11 | . . 11 Best Kill Streak 4 | 2 2 4 Combat Bots Only 4 | . 2 4 Max Kills in Single Turn 1 | 1 1 1 Gunslinging . | . . . Exploded 1 | . . 1 Melee . | . . . Uniques/NPCs Destroyed . | . . . Combat | -11 -10 -10 -------- Run | Yrd Mat Sub Hostile Shots Fired 93 | . 7 86 Missed 31 | . 3 28 Damage Taken 1040 | . 59 981 Core 257 | . . 257 Absorbed by Shields . | . . . Core Remaining (%) 100 | 100 . . Volleys Fired 98 | 11 31 56 Largest 2 | 2 2 2 Hottest 160 | 40 85 160 Shots Fired 176 | 22 59 95 Gun 133 | 22 59 52 Cannon 40 | . . 40 Launcher 3 | . . 3 Special . | . . . Kinetic 79 | 22 37 20 Thermal 80 | . 22 58 Explosive 3 | . . 3 Electromagnetic 14 | . . 14 Robot Hit Streak 18 | 8 7 18 Robot Miss Streak 6 | 3 6 5 Penetration Max . | . . . Secondary Targets 1 | . 1 . Max Gunslinging Chain 1 | . 1 . Shots Hit Robots 102 | 12 30 60 Core Hits 36 | 6 8 22 Critical Kills 1 | . . 1 Critical Parts Destroyed 1 | 1 . . Critical Strikes 4 | 1 1 2 Burn 1 | . 1 . Meltdown 1 | . . 1 Destroy 1 | 1 . . Corrupt 1 | . . 1 Melee Attacks . | . . . Impact . | . . . Slashing . | . . . Piercing . | . . . Sneak Attacks . | . . . Combat Hostiles . | . . . Follow-up Attacks . | . . . Damage Inflicted 1745 | 131 443 1171 Guns 1173 | 131 443 599 Cannons 474 | . . 474 Explosions 98 | . . 98 Melee . | . . . Ramming . | . . . Kinetic 519 | 131 186 202 Thermal 985 | . 257 728 Explosive 98 | . . 98 Electromagnetic 143 | . . 143 Impact . | . . . Slashing . | . . . Piercing . | . . . Highest Corruption . | . . . Average Corruption . | . . . Corruption Purged . | . . . Corruption Blocked . | . . . Overload Shots . | . . . Overflow Damage . | . . . Projectiles . | . . . Explosions . | . . . Melee . | . . . Knockbacks . | . . . Impact . | . . . Kinetic . | . . . Secondary . | . . . Self-Inflicted Damage 68 | . . 68 Shots 2 | . . 2 Rammed . | . . . Targets Rammed . | . . . Kicked . | . . . Crushed . | . . . Highest Temperature 198 | . 120 198 Average Temperature 47 | . 45 49 Received Heat Transfer 258 | . 33 225 Siege Activations . | . . . Robots Corrupted 1 | . . 1 Combat Hostiles 1 | . . 1 Parts Fried 1 | . . 1 Impact Corruptions . | . . . Robots Melted 1 | . . 1 Combat Hostiles 1 | . . 1 Parts Melted 4 | . . 4 Heat Transferred 1717 | . 666 1051 Parts Sabotaged . | . . . Parts Stolen . | . . . Parts Stripped . | . . . Power Chain Reactions . | . . . Alert | -11 -10 -10 ------- Run | Yrd Mat Sub Peak Influence 115 | 20 115 . Initial 13 | . 13 . Average 42 | 10 54 . Maximum Alert Level . | . . . Low Security (%) 100 | 100 100 . Level 1 . | . . . Level 2 . | . . . Level 3 . | . . . Level 4 . | . . . Level 5 . | . . . High Security . | . . . Max Security . | . . . Squads Dispatched 1 | . 1 . Investigation 1 | . 1 . Extermination . | . . . Reinforcement . | . . . Assault . | . . . Garrison . | . . . Intercept . | . . . Searches Triggered . | . . . Construction Impeded . | . . . Haulers Reinforced . | . . . Active Scanning Responses . | . . . Cargo Convoy Interrupts . | . . . Stealth | -11 -10 -10 --------- Run | Yrd Mat Sub Distress Signals . | . . . Communications Jammed . | . . . Distress Signals . | . . . Times Spotted 37 | . 7 30 Peak Tracking Total 6 | . 3 6 Tactical Retreats 2 | . . 2 Traps | -11 -10 -10 ------- Run | Yrd Mat Sub Traps Triggered . | . . . Indirectly . | . . . Trap Hack Attempts . | . . . Triggered . | . . . Disarmed . | . . . Reprogrammed . | . . . Reused . | . . . Traps Extracted . | . . . Installed . | . . . Triggered . | . . . Machines | -11 -10 -10 ---------- Run | Yrd Mat Sub Machines Disabled . | . . . Max in Single Turn . | . . . Machines Repaired . | . . . Machines Dismantled . | . . . Machines Sabotaged . | . . . Overloaded Fab Kills . | . . . Hacking | -11 -10 -10 --------- Run | Yrd Mat Sub Machines Accessed 3 | . 2 1 Terminals 1 | . 1 . Fabricators . | . . . Repair Stations . | . . . Recycling Units 1 | . 1 . Scanalyzers . | . . . Garrison Access . | . . . Total Hacks 8 | . 3 5 Successful 8 | . 3 5 Failed . | . . . Catastrophic . | . . . Database Lockouts . | . . . Manual 3 | . 3 . Terminals 2 | . 2 . Fabricators . | . . . Repair Stations . | . . . Recycling Units 1 | . 1 . Scanalyzers . | . . . Garrison Access . | . . . Terminal Hacks 5 | . . 5 Record 5 | . . 5 Fabricator Hacks . | . . . Repair Station Hacks . | . . . Recycling Unit Hacks . | . . . Scanalyzer . | . . . Garrison Access Hacks . | . . . Unauthorized Hacks 3 | . 3 . Terminals 2 | . 2 . Botnet 1 | . 1 . Operators 1 | . 1 . Fabricators . | . . . Repair Stations . | . . . Recycling Units 1 | . 1 . Tunnel 1 | . 1 . Scanalyzers . | . . . Garrison Access . | . . . Data Cores Recovered . | . . . Used . | . . . Hacking Detections 1 | . 1 . Full Trace Events . | . . . Feedback Events . | . . . Feedback Blocked . | . . . Robot Schematics Acquired . | . . . Robots Built . | . . . Authchips . | . . . Time . | . . . Total Robot Build Rating . | . . . Part Schematics Acquired . | . . . Parts Built . | . . . Authchips . | . . . Time . | . . . Total Part Build Rating . | . . . Parts Repaired . | . . . Time . | . . . Parts Recycled . | . . . Recycled Matter . | . . . Retrieved Matter . | . . . Retrieved Components . | . . . Parts Scanalyzed . | . . . Part Schematics Acquired . | . . . Parts Damaged . | . . . Bothacking | -11 -10 -10 ------------ Run | Yrd Mat Sub Used RIF Installer . | . . . Robots Hacked . | . . . Non-combat . | . . . Combat . | . . . Robot Hacks Applied . | . . . Relay Couplers Released . | . . . Fabnet Peak Effective % . | . . . Robots Rewired . | . . . Allies Hacked . | . . . Hacks Repelled . | . . . Allies | -11 -10 -10 -------- Run | Yrd Mat Sub Total Allies . | . . . Largest Group . | . . . Highest-Rated Group . | . . . Highest-Rated Ally . | . . . Total Orders . | . . . Ally Attacks . | . . . Total Damage . | . . . Kills . | . . . Allies Corrupted . | . . . Allies Melted . | . . . Intel | -11 -10 -10 ------- Run | Yrd Mat Sub Robot Analysis Total . | . . . Derelict Logs Recovered 2 | . . 2 Drone Launches . | . . . Drone Recoveries . | . . . Exploration | -11 -10 -10 ------------- Run | Yrd Mat Sub Turns Passed 2998 | 198 489 2311 Spaces Moved 1625 | 102 227 1296 Core 13 | 13 . . Treads 1612 | 89 227 1296 Legs . | . . . Wheels . | . . . Hover . | . . . Flight . | . . . Fastest Speed 50 | 50 160 160 Average Speed 159 | 145 160 160 Slowest Speed 160 | 160 160 160 Overloaded Moves . | . . . Propulsion Burnouts . | . . . Robots Hopped . | . . . Cave-ins Triggered . | . . . Exploration Rate (%) 34 | 7 27 68 Regions Visited 2 Branch Regions 1 Pre-discovered Areas 2 | . 1 1 Known Exits Taken . | . . . Unknown Exits Taken 2 | 1 1 . Scrap Searched 4 | . . 4 Spaces Dug 2 | . . 2 Terrain Destroyed 31 | . . 31 Melee . | . . . Projectile 10 | . . 10 AOE 21 | . . 21 Terrain Rammed . | . . . Walls Destroyed . | . . . Machines Disabled . | . . . Actions | -11 -10 -10 --------- Run | Yrd Mat Sub Total 1863 | 128 297 1438 Wait 76 | . 27 49 Move 1623 | 101 226 1296 Hop . | . . . Pick Up 20 | 8 5 7 Fast Attach 12 | 7 1 4 Attach 4 | . 1 3 Detach . | . . . Swap 12 | . 1 11 Drop 18 | 1 5 12 Fire 98 | 11 31 56 Melee . | . . . Ram . | . . . Kick . | . . . Crush . | . . . Escape Stasis . | . . . Rewire . | . . . Trap . | . . . Miscellaneous . | . . . Route ------- -11/Scrapyard -10/Materials -10/Subcaves (discovered 1 exit: *Mat) History --------- Turn | Location | Event 5 | -11/Scrapyard | Discovered new exit (range 16) 199 | -11/Scrapyard | Entered Materials 322 | -10/Materials | Build established: Mutant 672 | -10/Materials | Discovered new exit (range 10) 688 | -10/Materials | Entered Subcaves 945 | -10/Subcaves | Shifting Twisted Machinery released Mak. Light Armor Plating 947 | -10/Subcaves | Identified exit to Materials 997 | -10/Subcaves | Shifting Twisted Machinery released Sub. Optics 1191 | -10/Subcaves | Build established: Scavenger-Mutant 1429 | -10/Subcaves | Core integrity fell below 50% 1726 | -10/Subcaves | Learned location of Mines (-9) 1729 | -10/Subcaves | Visited Clippyterm 2274 | -10/Subcaves | A swath of the cavern ceiling suddenly collapsed 2792 | -10/Subcaves | A Subdweller sparked back to life 2792 | -10/Subcaves | A Subdweller sparked back to life 2811 | -10/Subcaves | Found Prototype Flight Unit 2884 | -10/Subcaves | Core integrity fell below 20% 2946 | -10/Subcaves | Build established: Mutant 2999 | -10/Subcaves | Destroyed by FO-NRP(R) with Subdweller Machine Gun Last Messages --------------- 02654_ Acquired 10 matter. 02660_ V9-FR1(R) destroyed. 02663_ Y3-8HM(R) destroyed. 02675_ K6-6S3(R) destroyed. 02792_ YF-TJX(R) suffers critical hit (Meltdown). 02792_ Sub. Laser melted. 02792_ Sub. Optics melted. 02792_ 67-XW8(R) creaks and sparks as it begins to move. 02792_ RA-22G(R) creaks and sparks as it begins to move. 02794_ Sensor Array destroyed. 02800_ RA-22G(R) destroyed. 02803_ 67-XW8(R) destroyed. 02810_ Dropped Flamer. 02810_ Dropped Mining Laser. 02811_ Dropped Sub. Monowheel. 02811_ Acquired Prototype Flight Unit. 02812_ Acquired 10 matter. 02883_ CQ-Q62(R) destroyed. Map ----- +----------------------------------------------------+ | ?????????????????????????????????????????????????? | | ?????????????????????????????????????????????????? | | ?????????????????????????????????????????????????? | | ?????????????????????????????????????????????????? | | ?????????????????????????????????????????????????? | | ?????????????????????????????????????????????????? | | ?????????????????????????????????????????????????? | | ?????????????????????????????????????????????????? | | ?????????????????????????????????????????????????? | | ?????????????????????????????????????????????????? | | ?????????????????????????????????????????????????? | | ??????????????#######????????????????????????????? | | ???????#####??# ## ###????????#?????????????????? | | ??###### # #?## #??????? ##"???????????????? | | ### ### #??????? # ???????????????? | | # ## ####??? ????????????????? | | # ## ## #### # ##?? ?????????????????? | | ####### #### ## ### #?????????????????? | | ##?####### R #?????????????????? | | # " ### ##?# #?????????????????? | | # " ###" #?# ##????????????????? | | " "##"" ### #????????????????? | | """" # "" ## ### ##???????????????? | | # ""### " ### ## #????????? | | " ####" "" ?????????? | | #"" ## """ @ #????????????????? | | #" ### "" #????????????????? | | ? ## ## ##????????????????? | | ? # ############## #?????????????????? | | #####?????????????##### ???????????????? | | #??????????????????????? ?????????????? | | ######???????????????????????? ????????????? | | ##?????????????????????????????????###???????????? | | ?????????????????????????????????????????????????? | | ?????????????????????????????????????????????????? | | ?????????????????????????????????????????????????? | | ?????????????????????????????????????????????????? | | ?????????????????????????????????????????????????? | | ?????????????????????????????????????????????????? | | ?????????????????????????????????????????????????? | | ?????????????????????????????????????????????????? | | ?????????????????????????????????????????????????? | | ?????????????????????????????????????????????????? | | ?????????????????????????????????????????????????? | | ?????????????????????????????????????????????????? | | ?????????????????????????????????????????????????? | | ?????????????????????????????????????????????????? | | | | | | | +----------------------------------------------------+ Best States ------------- Heat Dissipation 25 Energy Generation 14 Energy Capacity 160 Matter Stores 300 Matter Capacity 300 Sight Range 16 Robot Scan Range 14 Terrain Scan Density 10 Armor Coverage 150 Evasion (%) 40 Recoil Reduction 2 Item Schematics ----------------- None Robot Schematics ------------------ None Fabricated ------------ Nothing Alien Tech Used ----------------- None Achievements -------------- None Challenges ------------ None Game ------ Seed UtilityAssembledDoublenader Manual? 0 Play Time 00:16:32 Cumulative 381.8 hours Start 2024.03.17 @ 01:42:16 End 2024.03.17 @ 01:55:09 Sessions 1 Manual Loads 0 Difficulty Rogue Special Mode None Game No. 249 Rogue 226 Adventurer 6 Explorer 17 Win Type - Total 29 Types 21/0/4/1/0/1/1/1/0 Lore% 92 Gallery% 95 Achievement% 79 Wizard Run 0 Options --------- Layout 1 ASCII 0 Keyboard 0 Movement Numpad Keybinds 0 Fullscreen 1 Font 16/TamsynBold Map View 55x38 Zoom Use 0% Tactical HUD 1 Map Filters NONE Filters NONE Steam 1 RUN: 188f824a-982b-4a6d-b435-a6bfe93e25e7